{"text_format":"1","workbook":"xlsx","n_sheets":5,"sheets":["Change request form","learner-employer list ","How to complete this form","Provider list","Reasons"],"not_rendered":{"charts":0,"images":1,"macros":1,"external_links":2,"defined_names":9,"comments":0,"pivot_tables":0},"unopened":[],"bounds":{"document_bytes":16777216,"sheet_cells":100000,"rows_first":2000,"rows_last":500,"rows_between":2000,"halvings":0,"cell_chars":16384,"cell_head_chars":4096},"cells_cut":0,"cells_raw":0,"read":"whole","date_system":"1900"}

{"sheet":"Change request form","index":0,"n_rows":45,"n_cols":9,"rows_kept":45,"cut":false,"hidden":false,"merged":[[1,6,1,8],[10,3,10,5],[7,0,7,8],[38,3,38,6],[25,1,25,2],[2,6,3,8],[8,1,8,9],[43,0,43,7],[44,0,44,7],[16,3,16,4],[35,3,35,6],[36,3,36,6],[31,2,31,5],[32,2,32,5],[37,3,37,6]]}
[]
[null,null,null,null,null,null,"Completion status"]
[null,null,null,null,null,null,{"$f":"IF(AND(H11=\"✔\",H17=\"✔\",H25=\"✔\",H26=\"✔\",H30=\"✔\",H31=\"✔\",H32=\"✔\",H33=\"✔\",H36=\"✔\",H37=\"✔\",H38=\"✔\",H39=\"✔\",H41=\"✔\"),\"Complete\",\"Incomplete\")","v":"Incomplete"},{"$f":"IF(AND(I8=\"✔\",I15=\"✔\",I23=\"✔\",#REF!=\"✔\",I34=\"✔\",I35=\"✔\",I36=\"✔\",I37=\"✔\",I39=\"✔\",I42=\"✔\",OR(#REF!=\"Complete\",#REF!=\"Not required\")),\"Complete\",\"Incomplete\")","v":{"$error":"#REF!"}},{"$f":"IF(AND(J8=\"✔\",J15=\"✔\",J23=\"✔\",#REF!=\"✔\",J34=\"✔\",J35=\"✔\",J36=\"✔\",J37=\"✔\",J39=\"✔\",J42=\"✔\",OR(#REF!=\"Complete\",#REF!=\"Not required\")),\"Complete\",\"Incomplete\")","v":{"$error":"#REF!"}}]
[null,null,null,null,null,null,{"$f":"IF(AND(H10=\"✔\",H16=\"✔\",H24=\"✔\",#REF!=\"✔\",H36=\"✔\",H37=\"✔\",H38=\"✔\",H39=\"✔\",H41=\"✔\",#REF!=\"✔\",OR(#REF!=\"Complete\",#REF!=\"Not required\")),\"Complete\",\"Incomplete\")","v":{"$error":"#REF!"}},{"$f":"IF(AND(I10=\"✔\",I16=\"✔\",I24=\"✔\",#REF!=\"✔\",I35=\"✔\",I36=\"✔\",I37=\"✔\",I38=\"✔\",I40=\"✔\",#REF!=\"✔\",OR(#REF!=\"Complete\",#REF!=\"Not required\")),\"Complete\",\"Incomplete\")","v":{"$error":"#REF!"}},{"$f":"IF(AND(J10=\"✔\",J16=\"✔\",J24=\"✔\",#REF!=\"✔\",J35=\"✔\",J36=\"✔\",J37=\"✔\",J38=\"✔\",J40=\"✔\",#REF!=\"✔\",OR(#REF!=\"Complete\",#REF!=\"Not required\")),\"Complete\",\"Incomplete\")","v":{"$error":"#REF!"}}]
[]
["Apprenticeship Grant for Employers: change request form for 2016 to 2017 financial year"]
[]
["Please read the notes on How to complete this form and then complete the appropriate yellow cells."]
["Hidden tabs","If you would like to see the lists in the drop downs , then right click on any of the tabs below, click 'unhide' and each table will appear in a list."]
[]
[null,null,"Provider name",null,null,null,null,{"$f":"IF(ISBLANK(D11), \"✖\", \"✔\")","v":"✖"}]
[]
[null,null,"UK Provider Registration Number (UKPRN)",{"$f":"IFERROR(VLOOKUP(D11,'Provider list'!A:B,2,FALSE),\"\")","v":""},{"$f":"IFERROR(VLOOKUP(D11,'Provider list'!A2:B854,3,FALSE),\"\")","v":""}]
[]
["Reason for your request"]
[]
[null,null,"Please use the drop down box  ",null,null,null,null,{"$f":"IF(ISBLANK(D17), \"✖\", \"✔\")","v":"✖"}]
[]
["Total requested AGE allocation for 2016 to 2017 financial year"]
["To request an increase, please input the total allocation you would like (that is, your current allocation plus growth)."]
["To request a decrease, please input a value lower than your current allocation."]
["To request your allocation be removed, please input £0."]
[]
[null,null,null,null,"Value (£)"]
[null,null,null,"16-18 year olds",null,{"$f":"IF(E25=\"\",\"\",IF(AND(ISNUMBER(SEARCH(\"16-18\",D17)),D25<>\"\"),\"\",\"You did not select this age group\"))","v":""},null,{"$f":"IF(AND(ISNUMBER(SEARCH(\"16-18\",D17)),E25<>\"\"),\"✔\",IF(AND(D17=\"Change 19-24 age group only\",F25=\"\"),\"✔\",\"✖\"))","v":"✖"}]
[null,null,null,"19-24 year olds",null,{"$f":"IF(E26=\"\",\"\",IF(AND(ISNUMBER(SEARCH(\"19-24\",D17)),D26<>\"\"),\"\",\"You did not select this age group\"))","v":""},null,{"$f":"IF(AND(ISNUMBER(SEARCH(\"19-24\",D17)),E26<>\"\"),\"✔\",IF(AND(D17=\"Change 16-18 age group only\",F26=\"\"),\"✔\",\"✖\"))","v":"✖"}]
[]
[]
["Eligibility declaration"]
[null,"Please tick to confirm:","Only apprentices who started between 1 January 2016 and 31 December 2016  have been included in this request … … …",null,null,null,false,{"$f":"IF(G30=FALSE,\"✖\",\"✔\")","v":"✖"}]
[null,null,"This growth request does not include apprentices from areas where AGE has been devolved … … …",null,null,null,false,{"$f":"IF(G31=FALSE,\"✖\",\"✔\")","v":"✖"}]
[null,null,"If the request for growth is bigger than our current delivery and pipeline I have enclosed a list of ULN and ERN numbers on the attached \"Learner-Employer list\"  that are due to be input at our next ILR return.",null,null,null,false,{"$f":"IF(G32=FALSE,\"✖\",\"✔\")","v":"✖"}]
[null,null,"I understand the amount of growth funding we may be given depends on our current delivery … … …",null,null,null,false,{"$f":"IF(G33=FALSE,\"✖\",\"✔\")","v":"✖"}]
[]
["Request completed by"]
[null,null,"Name",null,null,null,null,{"$f":"IF(ISBLANK(D36), \"✖\", \"✔\")","v":"✖"}]
[null,null,"Position in organisation",null,null,null,null,{"$f":"IF(ISBLANK(D37), \"✖\", \"✔\")","v":"✖"}]
[null,null,"Email address",null,null,null,null,{"$f":"IF(ISBLANK(D38), \"✖\", \"✔\")","v":"✖"}]
[null,null,"Date of request",null,null,null,null,{"$f":"IF(ISBLANK(D39), \"✖\", \"✔\")","v":"✖"}]
[]
[null,null,null,null,null,"Please tick to confirm that you have the authority to act on behalf of the applicant organisation named in this form",false,{"$f":"IF(G41=FALSE,\"✖\",\"✔\")","v":"✖"}]
[null,null,null,null,null,"Please note that the Skills Funding Agency will send the outcome of the request to the Head of the Organisation"]
[]
["Please click this button to create an email and automatically attach the form."]
["If the button does not work, please just attach the form manually to an email and send the email to providerAGEfacilitymanagement@sfa.bis.gov.uk. "]

{"sheet":"learner-employer list ","index":1,"n_rows":2,"n_cols":6,"rows_kept":2,"cut":false,"hidden":false,"merged":[]}
[]
["UKPRN","Prv_Name","Employer_ID","Employer_Name","Learner_ULN","LearningStartDate"]

{"sheet":"How to complete this form","index":2,"n_rows":18,"n_cols":2,"rows_kept":18,"cut":false,"hidden":false,"merged":[[0,0,0,1],[8,0,8,1],[1,0,1,1]]}
["Please read the Apprenticeship frameworks and AGE funding and Performance-management Rules 2016 to 2017 for information \nabout this process."]
["For information about areas where AGE has been devolved, please see www.gov.uk/sfa"]
["HOW TO COMPLETE THIS FORM"]
[]
["Who can use this form and what for","You can use this form to request a change to your AGE allocation, if you already have one.\n\nYou can use this form to request an AGE allocation for the first time if you don’t already have one. You must currently have an apprenticeships funding agreement for the appropriate age group(s) with the Skills Funding Agency.  Employers who hold a Conditions of Funding (Grant) – Employer funding agreement with us for apprenticeships cannot have an AGE funding agreement and cannot claim AGE."]
["Macro security","This form contains macros.  You must enable macros every time you open the spreadsheet for it to work properly.  In Excel 2013, you enable macros by clicking 'enable content' on a yellow security warning banner.\n"]
["Deadline","The deadline for a change to your AGE allocation or for requesting an AGE allocation for the first time is 16 December 2016."]
[]
["CHANGE REQUEST FORM"]
["Field","Description"]
["Completion status","This box stays INCOMPLETE until all the required yellow boxes are complete.  Once all the required yellow boxes are complete, it changes to COMPLETE.  The macro to send the email automatically will not work unless the Completion Status is COMPLETE.\n\nThe ticks and crosses down the righthand side help you to see which boxes have not been completed (or have been completed incorrectly).  The COMPLETE box turns green when these are all ticks."]
["Provider name","Use the drop-down box to select your provider name from a list.  If your provider name is not listed, please email providerAGEfacilitymanagement@sfa.bis.gov.uk for advice (and quote your UKPRN).  Please note: to request an AGE allocation for the first time, you must currently have an apprenticeships funding agreement for the appropriate age group(s) with the Skills Funding Agency.\n"]
["UK Provider Registration Number (UKPRN)","This box is filled in automatically with your UK Provider Registration Number as it appears on the UK Register of Learning Providers (UKRLP) once you select your provider name.\n"]
["Reason for your request\n","Please select an option from the drop-down menu.  The yellow cells (for you to complete) will change, depending on which option you select."]
["Total requested AGE allocation for 2016 to 2017 financial year","Please enter the value of the total AGE allocation you wish to request for the full financial year. This must be in multiples of £1,500 (as AGE is £1,500 per eligible apprentice).\n\nIf you are requesting growth, input the total of your existing AGE allocation PLUS the increase you require.\nIf you want to reduce your AGE allocation, input a value which is less than your existing AGE allocation.\nIf you want us to remove your AGE allocation completely, input 0 (zero).\n"]
["Eligibility declaration","Please tick each of the boxes to confirm you have only included eligible apprentices who started on or after 1 January 2016, that you have not included apprentices from areas where AGE has been devolved, and that you understand the performance-management rules for growth requests."]
["Request completed by","Please ensure you enter your:\n  Name\n  Position in organisation\n  Email address\n  Date of request\nand tick the box to confirm that you have authority to request additional funding for your provider.\n"]
["Email the completed form button","If you have enabled the macros, clicking this button will automatically create an email to providerAGEfacilitymanagement@sfa.bis.gov.uk and add this form to the email as an attachment.\n\nIf the macro does not work for some reason, please just attach the form to an email manually and send it to providerAGEfacilitymanagement@sfa.bis.gov.uk.\n"]

{"sheet":"Provider list","index":3,"n_rows":735,"n_cols":2,"rows_kept":735,"cut":false,"hidden":true,"merged":[]}
["Provider Name","UKPRN"]
["5 E LTD.",10000020]
["ABINGDON AND WITNEY COLLEGE",10000055]
["ACACIA TRAINING AND DEVELOPMENT LTD",10000060]
["ACACIA TRAINING LIMITED",10000061]
["ACADEMY EDUCATION LIMITED",10000191]
["ACADEMY TRANSFORMATION TRUST",10039859]
["ACCESS TO MUSIC LIMITED",10000080]
["ACCESS TRAINING (EAST MIDLANDS) LTD",10010584]
["ACCESS TRAINING LIMITED",10009059]
["ACCRINGTON AND ROSSENDALE COLLEGE",10000093]
["ACHIEVE THROUGH LEARNING LIMITED",10019431]
["ACHIEVEMENT TRAINING LIMITED",10000099]
["ACTIVATE LEARNING",10004927]
["ADVANCED PERSONNEL MANAGEMENT GROUP (UK) LIMITED",10019155]
["ALDER TRAINING LIMITED",10000201]
["ALL TRADES TRAINING LIMITED",10027693]
["ALLIANCE LEARNING",10000238]
["ALT VALLEY COMMUNITY TRUST LIMITED",10001777]
["AMERSHAM & WYCOMBE COLLEGE",10000275]
["ANDERSON STOCKLEY ACCREDITED TRAINING LTD",10023918]
["ANDREW COLLINGE TRAINING LIMITED",10000285]
["ANGLIA RUSKIN UNIVERSITY",10000291]
["ANNE CLARKE ASSOCIATES LIMITED",10022210]
["APPRENTICE FUNDING ASSISTANT LIMITED",10030249]
["APPRENTICESHIPS & TRAINING SERVICES CONSORTIUM LIMITED",10032404]
["APPRIS CHARITY LIMITED",10000848]
["ASHTON SIXTH FORM COLLEGE",10000409]
["ASKHAM BRYAN COLLEGE",10000415]
["ASPIRATION TRAINING LIMITED",10000421]
["ASPIRE ACHIEVE ADVANCE LIMITED",10031241]
["ASPIRE TRAINING TEAM LIMITED",10006942]
["ASSET TRAINING & CONSULTANCY LIMITED",10000427]
["ASTON UNIVERSITY",10007759]
["ASTUTE MINDS LTD",10020307]
["ATG TRAINING",10000476]
["AURELIA TRAINING LIMITED",10000452]
["AVANT PARTNERSHIP LIMITED",10022513]
["AWE PLC",10008081]
["AXIA SOLUTIONS LIMITED",10000470]
["AYLESBURY COLLEGE",10000473]
["B L TRAINING LIMITED",10000486]
["BABCOCK SKILLS DEVELOPMENT AND TRAINING LIMITED",10037348]
["BABCOCK TRAINING LIMITED",10003161]
["BABINGTON BUSINESS COLLEGE LIMITED",10000494]
["BALTIC TRAINING SERVICES LIMITED",10019026]
["BARKING & DAGENHAM LONDON BOROUGH COUNCIL",10000143]
["BARKING AND DAGENHAM COLLEGE",10000528]
["BARNARDO'S",10000532]
["BARNET & SOUTHGATE COLLEGE",10000533]
["BARNFIELD COLLEGE",10000534]
["BARNSLEY COLLEGE",10000536]
["BASINGSTOKE COLLEGE OF TECHNOLOGY",10000560]
["BASINGSTOKE YOUTH ACTION TRUST LIMITED",10000561]
["BATH COLLEGE",10001465]
["BC ARCH LIMITED ",10046797]
["BCTG LIMITED",10006600]
["BE TOTALLY YOU",10019227]
["BEDFORD COLLEGE",10000610]
["BERKSHIRE COLLEGE OF AGRICULTURE, THE (BCA)",10000654]
["BESTLAND SOLUTIONS LIMITED",10018344]
["BEXHILL COLLEGE",10000670]
["BEXLEY LONDON BOROUGH COUNCIL",10000146]
["BEXLEY YOUTH TRAINING GROUP",10000673]
["BIRMINGHAM ELECTRICAL TRAINING LTD",10000715]
["BIRMINGHAM METROPOLITAN COLLEGE",10006442]
["BISHOP AUCKLAND COLLEGE",10000720]
["BISHOP BURTON COLLEGE",10000721]
["BLACKBURN COLLEGE",10000747]
["BLACKPOOL AND THE FYLDE COLLEGE",10000754]
["BLUE ARROW LTD. ",10048290]
["BMC (BROOKSBY MELTON COLLEGE)",10000952]
["BOLTON COLLEGE",10000794]
["BOROUGH OF POOLE",10005143]
["BOSCH AUTOMOTIVE SERVICE SOLUTIONS LTD",10042884]
["BOSTON COLLEGE",10000812]
["BOURNEMOUTH AND POOLE COLLEGE, THE",10000820]
["BOURNVILLE COLLEGE",10000825]
["BOWLING COLLEGE",10009975]
["BPP HOLDINGS LIMITED",10000831]
["BRACKNELL AND WOKINGHAM COLLEGE",10000833]
["BRADFORD CITY COUNCIL",10000850]
["BRADFORD COLLEGE",10000840]
["BRIDGWATER COLLEGE",10000878]
["BRINSWORTH TRAINING LIMITED",10022320]
["BRISTOL CITY COUNCIL",10000896]
["BRITISH PRINTING INDUSTRIES FEDERATION LTD",10000929]
["BROADLAND DISTRICT COUNCIL",10000941]
["BROCKENHURST COLLEGE",10000944]
["BROMLEY COLLEGE OF FURTHER AND HIGHER EDUCATION",10000948]
["BROOKLANDS COLLEGE",10000950]
["BRS EDUCATION LIMITED ",10048409]
["B-SKILL LIMITED",10000488]
["BUCKINGHAMSHIRE COUNTY COUNCIL",10000976]
["BUILDING CRAFTS COLLEGE",10009063]
["BURNLEY COLLEGE",10001000]
["BURTON AND SOUTH DERBYSHIRE COLLEGE",10001004]
["BURY COLLEGE",10001005]
["BURY METROPOLITAN BOROUGH COUNCIL",10001008]
["BUSINESS MANAGEMENT RESOURCES (UK) LTD",10001055]
["BUSY BEES NURSERIES LIMITED",10030637]
["CABLECOM TRAINING LIMITED",10001078]
["CALDERDALE COLLEGE",10001093]
["CAMBRIDGE REGIONAL COLLEGE",10001116]
["CAMBRIDGESHIRE COUNTY COUNCIL",10001123]
["CANTERBURY COLLEGE",10001144]
["CAPEL MANOR COLLEGE",10001148]
["CAPITA PLC",10001149]
["CAPITAL ENGINEERING GROUP HOLDINGS LTD",10022461]
["CARE UK COMMUNITY PARTNERSHIPS LTD ",10052994]
["CARILLION CONSTRUCTION LIMITED",10001193]
["CARLISLE COLLEGE",10001196]
["CARSHALTON COLLEGE",10001207]
["CATCH 22 CHARITY LIMITED",10025727]
["CENTRAL BEDFORDSHIRE COLLEGE",10002061]
["CENTRAL BEDFORDSHIRE COUNCIL",10024292]
["CENTRAL MANCHESTER UNIVERSITY HOSPITALS NHS FOUNDATION TRUST",10001263]
["CENTRAL SUSSEX COLLEGE",10001744]
["CENTRAL TRAINING ACADEMY LIMITED",10001259]
["CHAMBER TRAINING (HUMBER) LIMITED",10001310]
["CHAPMAN BENNETT ASSOCIATES LIMITED",10024603]
["CHEADLE AND MARPLE SIXTH FORM COLLEGE",10001346]
["CHELMSFORD COLLEGE",10001353]
["CHESHIRE WEST AND CHESTER COUNCIL",10024294]
["CHESTERFIELD COLLEGE",10001378]
["CHEYNE'S (MANAGEMENT) LIMITED",10008159]
["CHICHESTER COLLEGE",10007817]
["CHILDREN'S LINKS",10001392]
["CHILTERN TRAINING LIMITED",10001394]
["CIRENCESTER COLLEGE",10001446]
["CITB",10001436]
["CITY COLLEGE BRIGHTON AND HOVE",10001457]
["CITY COLLEGE COVENTRY",10001458]
["CITY COLLEGE NORWICH",10004772]
["CITY COLLEGE PLYMOUTH",10005128]
["CITY GATEWAY",10019383]
["CITY OF BRISTOL COLLEGE",10001467]
["CITY OF WESTMINSTER COLLEGE",10001476]
["CITY OF WOLVERHAMPTON COLLEGE",10007578]
["CITY OF YORK COUNCIL",10001477]
["CLARKSON EVANS TRAINING LIMITED",10025390]
["CLEVELAND YOUTH ASSOCIATION",10005775]
["COLCHESTER INSTITUTE",10001535]
["COLLEGE OF HARINGEY, ENFIELD AND NORTH-EAST LONDON, THE",10001548]
["COLLEGE OF NORTH WEST LONDON, THE",10001549]
["COMMON COUNCIL OF THE CITY OF LONDON",10008915]
["COMMUNITY TRAINING SERVICES LIMITED",10001602]
["CONSORTIA TRAINING LIMITED",10033482]
["CONSORTIUM OF VOCATIONAL AND EDUCATIONAL TRAINERS LIMITED",10033547]
["CORNWALL COLLEGE",10001696]
["COUNTY DURHAM COUNCIL",10002064]
["COVENTRY AND WARWICKSHIRE CHAMBERS OF COMMERCE TRAINING LIMITED",10001309]
["CRACKERJACK TRAINING LIMITED",10001736]
["CRAVEN COLLEGE",10001743]
["CREATIVE AND CULTURAL INDUSTRIES TRADING LIMITED",10026573]
["CREATIVE PROCESS",10023901]
["CREATIVE SUPPORT LIMITED",10024921]
["CROYDON COLLEGE",10001778]
["CSM CONSULTING LIMITED",10001786]
["CT SKILLS LIMITED",10001174]
["CUMBRIA COUNTY COUNCIL",10001800]
["D M T BUSINESS SERVICES LTD",10001997]
["D MANTLE LIMITED",10031146]
["DAMAR LIMITED",10001831]
["DARLINGTON BOROUGH COUNCIL",10001848]
["DARLINGTON COLLEGE",10001850]
["DART LIMITED",10001828]
["DAVIDSON TRAINING UK LIMITED",10001869]
["DAWN HODGE ASSOCIATES LIMITED",10022117]
["DEARNE VALLEY COLLEGE",10001897]
["DEFENCE, MINISTRY OF",10011058]
["DERBY BUSINESS COLLEGE LIMITED",10005109]
["DERBY CITY COUNCIL",10001918]
["DERBY COLLEGE",10001919]
["DERBYSHIRE AND NOTTINGHAMSHIRE CHAMBER OF COMMERCE AND INDUSTRY",10001927]
["DERBYSHIRE COUNTY COUNCIL",10001928]
["DERWEN COLLEGE",10001929]
["DERWENTSIDE COLLEGE",10001934]
["DEVON COUNTY COUNCIL",10001951]
["DIDAC LIMITED",10001967]
["DIMENSIONS TRAINING SOLUTIONS LIMITED",10001971]
["DONCASTER COLLEGE",10002005]
["DONCASTER METROPOLITAN BOROUGH COUNCIL",10002008]
["DONCASTER ROTHERHAM AND DISTRICT MOTOR TRADES GROUP TRAINING ASSOCIATION LIMITED",10002009]
["DOOSAN BABCOCK LIMITED",10004399]
["DUDLEY COLLEGE",10007924]
["E.ON UK PLC",10023793]
["EALING, HAMMERSMITH & WEST LONDON COLLEGE",10002094]
["EAST BERKSHIRE COLLEGE",10002107]
["EAST DURHAM COLLEGE",10002111]
["EAST KENT COLLEGE",10006570]
["EAST LINDSEY INFORMATION TECHNOLOGY CENTRE",10002471]
["EAST LONDON ADVANCED TECHNOLOGY TRAINING",10002118]
["EAST RIDING COLLEGE",10002126]
["EAST RIDING OF YORKSHIRE COUNCIL",10008919]
["EAST SURREY COLLEGE",10002130]
["EASTLEIGH COLLEGE",10002143]
["EASTON AND OTLEY COLLEGE",10037344]
["ECONOMIC SOLUTIONS LIMITED",10004177]
["EDEN TRAINING SOLUTIONS LIMITED",10027766]
["EDUCATION AND TRAINING SKILLS LTD",10002187]
["EEF LIMITED",10025384]
["ENFIELD LONDON BOROUGH COUNCIL",10002260]
["ENGINEERING TRUST TRAINING LIMITED",10003402]
["ENGLAND AND WALES CRICKET BOARD LIMITED",10013548]
["EPPING FOREST COLLEGE",10002297]
["EQL SOLUTIONS LIMITED",10044028]
["ESG (SKILLS) LIMITED",10034309]
["ESSEX COUNTY COUNCIL",10002327]
["E-TRAINING LIMITED",10002078]
["EXETER COLLEGE",10002370]
["EXG LIMITED",10003231]
["FAREHAM COLLEGE",10007928]
["FAREPORT TRAINING ORGANISATION LIMITED",10002407]
["FARNBOROUGH COLLEGE OF TECHNOLOGY",10002412]
["FASHION RETAIL ACADEMY",10009213]
["FINNING (UK) LTD.",10002463]
["FIRST CITY TRAINING LIMITED",10010571]
["FIRST4SKILLS LIMITED",10038911]
["FNTC TRAINING AND CONSULTANCY LIMITED",10002424]
["FOCUS TRAINING & DEVELOPMENT LTD",10009687]
["FOCUS TRAINING (SW) LIMITED",10026590]
["FORSTER COMMUNITY COLLEGE LIMITED",10001230]
["FRANCESCO GROUP (HOLDINGS) LIMITED",10002565]
["FRANKLIN COLLEGE",10002570]
["FURNESS COLLEGE",10002599]
["G B TRAINING (UK) LTD",10002618]
["G.R. & M.M. BLACKLEDGE PLC",10000789]
["GATESHEAD COLLEGE",10002638]
["GATESHEAD COUNCIL",10002639]
["GENII ENGINEERING & TECHNOLOGY TRAINING LIMITED",10002655]
["GHQ TRAINING LIMITED",10012171]
["GLOUCESTERSHIRE COLLEGE",10002696]
["GLOUCESTERSHIRE COUNTY COUNCIL",10002697]
["GLOUCESTERSHIRE ENGINEERING TRAINING LIMITED",10002704]
["GORDON FRANKS TRAINING LIMITED",10043571]
["GP STRATEGIES TRAINING LIMITED",10036952]
["GRANTHAM COLLEGE",10002743]
["GREAT YARMOUTH COLLEGE",10002755]
["GREENBANK SERVICES LIMITED",10026002]
["GREENWICH LEISURE LTD",10041422]
["GRIMSBY INSTITUTE OF FURTHER AND HIGHER EDUCATION",10007938]
["GUILDFORD COLLEGE",10002815]
["HADDON TRAINING LIMITED",10002841]
["HADLOW COLLEGE",10002843]
["HAIR ACADEMY SOUTH WEST LIMITED",10002850]
["HAIR AND BEAUTY INDUSTRY TRAINING LIMITED",10002834]
["HALESOWEN COLLEGE",10002852]
["HAMPSHIRE COUNTY COUNCIL",10002872]
["HARINGEY LONDON BOROUGH COUNCIL",10002859]
["HARLOW COLLEGE",10002899]
["HARROW COLLEGE",10002907]
["HARTLEPOOL BOROUGH COUNCIL",10002916]
["HARTLEPOOL COLLEGE OF FURTHER EDUCATION",10002917]
["HARTLEPOOL SIXTH FORM COLLEGE",10002918]
["HARTPURY COLLEGE",10002919]
["HAVANT COLLEGE",10002929]
["HAVERING COLLEGE OF FURTHER AND HIGHER EDUCATION",10002935]
["HAVERING LONDON BOROUGH COUNCIL",10003993]
["HAWK MANAGEMENT (UK) LIMITED",10009600]
["HAYS TRAVEL LIMITED",10030120]
["HEALTH & SAFETY TRAINING LIMITED",10021665]
["HEALTH EDUCATION ENGLAND NORTH EAST",10041332]
["HEART OF ENGLAND TRAINING LIMITED",10002976]
["HEART OF WORCESTERSHIRE COLLEGE",10007977]
["HEATHERCROFT TRAINING SERVICES LIMITED",10002979]
["HENLEY COLLEGE COVENTRY",10003010]
["HEREFORDSHIRE AND LUDLOW COLLEGE",10003023]
["HEREFORDSHIRE GROUP TRAINING ASSOCIATION LIMITED",10003026]
["HEREWARD COLLEGE OF FURTHER EDUCATION",10003029]
["HERTFORD REGIONAL COLLEGE",10003035]
["HIGHBURY COLLEGE PORTSMOUTH",10007945]
["HILLINGDON LONDON BOROUGH COUNCIL",10003089]
["HILLINGDON TRAINING LIMITED",10003093]
["HIT TRAINING LTD",10012467]
["HOLTS ACADEMY OF JEWELLERY LIMITED",10038772]
["HONDA MOTOR EUROPE LIMITED",10011941]
["HOOPLE LTD",10036333]
["HOPWOOD HALL COLLEGE",10003146]
["HOSPITALITY TRAINING PARTNERSHIP (IOW) LIMITED",10003162]
["HOUNSLOW LONDON BOROUGH COUNCIL",10003165]
["HOUSE OF CLIVE (HAIR AND BEAUTY) LIMITED",10005426]
["HUDDERSFIELD TEXTILE TRAINING LIMITED",10003190]
["HUDSON & HUGHES TRAINING LIMITED",10003192]
["HUGH BAIRD COLLEGE",10003193]
["HULL BUSINESS TRAINING CENTRE LIMITED",10003197]
["HULL COLLEGE",10003200]
["HUMBER LEARNING CONSORTIUM",10003207]
["HUMBERSIDE ENGINEERING TRAINING ASSOCIATION LIMITED",10003206]
["HUNTINGDONSHIRE REGIONAL COLLEGE",10007949]
["ICON VOCATIONAL TRAINING LIMITED",10003240]
["IMPACT LEARNING & DATA SOLUTIONS LIMITED",10022627]
["IN TOUCH CARE LIMITED",10003279]
["IN-COMM TRAINING AND BUSINESS SERVICES LIMITED",10003280]
["INDEPENDENT TRAINING SERVICES LIMITED",10003289]
["INGEUS TRAINING LIMITED",10007755]
["INSPIRE 2 INDEPENDENCE (I2I) LTD",10010940]
["INTEC BUSINESS COLLEGES LIMITED",10003347]
["INTER TRAINING SERVICES LIMITED",10003354]
["INTERACTIVE DEVELOPMENT EDUCATION LIMITED",10013539]
["INTROTRAIN (ACE) LIMITED",10034022]
["INTUITIONS LIMITED",10003382]
["IPS INTERNATIONAL LIMITED",10003385]
["ISLE OF WIGHT COLLEGE",10003406]
["ITEC NORTH EAST LIMITED",10003430]
["ITS TRAINING LTD",10036282]
["IXION HOLDINGS (CONTRACTS) LIMITED",10033758]
["JAGUAR LAND ROVER HOLDINGS LIMITED",10009671]
["JANARD TRAINING AND ASSESSMENT CENTRE LIMITED",10007951]
["JANCETT CHILDCARE & JACE TRAINING LIMITED",10042190]
["JARVIS TRAINING MANAGEMENT LIMITED",10003456]
["JBC COMPUTER TRAINING LIMITED",10019314]
["JGA LIMITED",10006710]
["JOBWISE TRAINING LIMITED",10003478]
["JOHN LAING TRAINING LIMITED",10003490]
["JOHN LEGGOTT SIXTH FORM COLLEGE",10003491]
["JOHN RUSKIN COLLEGE",10003500]
["JOINT LEARNING PARTNERSHIP LIMITED",10003508]
["JTL",10003526]
["K & G HAIR LLP",10033723]
["KAPLAN FINANCIAL LIMITED",10000446]
["KEITS TRAINING SERVICES LTD",10003571]
["KENDAL COLLEGE",10003558]
["KENSINGTON AND CHELSEA COLLEGE",10003564]
["KENT COUNTY COUNCIL",10003570]
["KEY TRAINING LIMITED",10003593]
["KIDDERMINSTER COLLEGE",10053960]
["KINGSTON COLLEGE",10003674]
["KINGSTON MAURWARD COLLEGE",10003676]
["KINGSTON UPON HULL CITY COUNCIL",10003198]
["KIRKDALE INDUSTRIAL TRAINING SERVICES LIMITED",10003688]
["KIRKLEES COLLEGE",10003189]
["KNOWSLEY COMMUNITY COLLEGE",10003708]
["L.I.T.S. LIMITED",10003728]
["LAGAT LIMITED",10003744]
["LAKES COLLEGE WEST CUMBRIA",10003753]
["LAMBETH COLLEGE",10003755]
["LANCASTER AND MORECAMBE COLLEGE",10003768]
["LANCASTER TRAINING SERVICES LIMITED",10003771]
["LAWN TENNIS ASSOCIATION LIMITED",10022654]
["LEAGUE FOOTBALL EDUCATION",10003808]
["LEARNDIRECT LIMITED",10003816]
["LEARNING CURVE (JAA) LIMITED",10008935]
["LEARNING SKILLS PARTNERSHIP LTD",10032740]
["LEEDS CITY COLLEGE",10024962]
["LEEDS COLLEGE OF BUILDING",10003855]
["LEICESTER CITY COUNCIL",10003866]
["LEICESTER COLLEGE",10003867]
["LEICESTERSHIRE COUNTY COUNCIL",10003872]
["LESLIE FRANCES (HAIR FASHIONS) LIMITED",10003889]
["LEWISHAM SOUTHWARK COLLEGE",10003894]
["LIFESKILLS SOLUTIONS LIMITED",10003909]
["LIFETIME TRAINING GROUP LIMITED",10003915]
["LIGA (UK) LTD",10034315]
["LINCOLN COLLEGE",10003928]
["LITE (STOCKPORT) LIMITED",10008354]
["LIVERPOOL CHAMBER TRAINING LTD",10030252]
["LIVERPOOL CITY COUNCIL",10003954]
["LIVERPOOL JOHN MOORES UNIVERSITY",10003957]
["LOCOMOTIVATION LTD.",10003976]
["LONDON LEARNING CONSORTIUM COMMUNITY INTEREST COMPANY",10021684]
["LONDON SKILLS & DEVELOPMENT NETWORK LIMITED",10022507]
["LONDON VESTA COLLEGE LIMITED",10024404]
["LOOKFANTASTIC TRAINING LIMITED",10012477]
["LOUGHBOROUGH COLLEGE",10004112]
["LOWESTOFT COLLEGE",10004116]
["LUTON BOROUGH COUNCIL",10004124]
["M I T SKILLS LIMITED",10004440]
["MACCLESFIELD COLLEGE",10004144]
["MAINSTREAM TRAINING LIMITED",10009491]
["MANCHESTER COLLEGE, THE",10023139]
["MANCHESTER METROPOLITAN UNIVERSITY",10004180]
["MANTRA LEARNING LIMITED",10004181]
["MARDELL ASSOCIATES LIMITED",10005926]
["MARITIME + ENGINEERING COLLEGE NORTH WEST",10003748]
["MARR CORPORATION LIMITED",10024124]
["MATRIX TRAINING AND DEVELOPMENT LIMITED",10004240]
["MCARTHUR DEAN TRAINING LIMITED",10004257]
["MEADOWHALL TRAINING LIMITED",10010905]
["MEDWAY COUNCIL",10004285]
["MERCEDES-BENZ UK LIMITED",10022856]
["MERCIA PARTNERSHIP (UK) LTD",10004303]
["METSKILL LIMITED",10004319]
["MI COMPUTSOLUTIONS INCORPORATED",10018328]
["MICHAEL JOHN HEATH",10014196]
["MICHAEL JOHN TRAINING LIMITED",10007002]
["MICHAEL MCCORMACK",10012892]
["MID-CHESHIRE COLLEGE",10004339]
["MIDDLESBROUGH COLLEGE",10004344]
["MIDDLESBROUGH COUNCIL",10004343]
["MID-KENT COLLEGE",10004340]
["MIDLAND GROUP TRAINING SERVICES LIMITED",10004355]
["MILLBROOK MANAGEMENT SERVICES LIMITED",10005264]
["MILTON KEYNES COLLEGE",10004375]
["MILTON KEYNES COUNCIL",10004376]
["MITCHELLS & BUTLERS PLC",10055995]
["MOBILE CARE QUALIFICATIONS LIMITED",10004404]
["MORLEY COLLEGE LIMITED",10004432]
["MOULTON COLLEGE",10004442]
["MPOWER TRAINING SOLUTIONS LTD",10023896]
["MYERSCOUGH COLLEGE",10004478]
["N & B TRAINING COMPANY LIMITED",10004484]
["NACRO",10004486]
["NATIONAL BUSINESS COLLEGE LIMITED",10004499]
["NATIONAL COLLEGE FOR DIGITAL SKILLS. (ADA College)",10053554]
["NATIONAL TYRE SERVICE LIMITED",10004530]
["NELSON AND COLNE COLLEGE",10004552]
["NETA TRAINING TRUST",10004558]
["NEW COLLEGE DURHAM",10004576]
["NEW COLLEGE NOTTINGHAM (NCN)",10004577]
["NEW COLLEGE STAMFORD",10006303]
["NEW COLLEGE SWINDON",10004579]
["NEW COLLEGE TELFORD",10004580]
["NEWBURY COLLEGE",10004596]
["NEWCASTLE COLLEGE",10053962]
["NEWCASTLE UPON TYNE CITY COUNCIL",10004601]
["NEWCASTLE-UNDER-LYME COLLEGE (NULC)",10004603]
["NEWHAM COLLEGE OF FURTHER EDUCATION",10004607]
["NHTA LIMITED",10004632]
["NISSAN MOTOR MANUFACTURING (UK) LIMITED",10026702]
["NLT TRAINING SERVICES LIMITED",10004645]
["NORFOLK COUNTY COUNCIL",10004657]
["NORFOLK TRAINING SERVICES LIMITED",10004663]
["NORTH EAST EMPLOYMENT & TRAINING AGENCY LTD",10004547]
["NORTH EAST LINCOLNSHIRE COUNCIL",10004684]
["NORTH EAST SURREY COLLEGE OF TECHNOLOGY (NESCOT)",10004686]
["NORTH HERTFORDSHIRE COLLEGE",10004690]
["NORTH KENT COLLEGE",10004721]
["NORTH LANCS. TRAINING GROUP LIMITED(THE)",10004692]
["NORTH LINCOLNSHIRE COUNCIL",10004694]
["NORTH LINDSEY COLLEGE",10004695]
["NORTH LIVERPOOL REGENERATION COMPANY LTD",10020981]
["NORTH SHROPSHIRE COLLEGE",10007299]
["NORTH TYNESIDE METROPOLITAN BOROUGH COUNCIL",10004714]
["NORTH WARWICKSHIRE AND HINCKLEY COLLEGE",10004718]
["NORTH WEST COMMUNITY SERVICES TRAINING LTD",10004720]
["NORTH WEST TRAINING COUNCIL",10004723]
["NORTH YORKSHIRE COUNTY COUNCIL",10004727]
["NORTHAMPTON COLLEGE",10007011]
["NORTHAMPTONSHIRE COUNTY COUNCIL",10004733]
["NORTHAMPTONSHIRE INDUSTRIAL TRAINING ASSOCIATION LIMITED",10004643]
["NORTHBROOK COLLEGE SUSSEX",10004736]
["NORTHERN CARE TRAINING LIMITED",10013515]
["NORTHERN RACING COLLEGE",10004748]
["NORTHUMBERLAND COLLEGE",10004760]
["NOTTINGHAMSHIRE TRAINING NETWORK",10004807]
["OAKLANDS COLLEGE",10004835]
["OLDHAM ENGINEERING GROUP TRAINING ASSOCIATION LIMITED (THE)",10004856]
["OMEGA TRAINING SERVICES LIMITED",10004866]
["OPTIONS 2 WORKPLACE LEARNING LTD",10010572]
["ORACLE TRAINING CONSULTANTS LIMITED",10004895]
["OUTSOURCE VOCATIONAL LEARNING LIMITED",10022439]
["P.T.P. TRAINING LIMITED",10011880]
["PARAGON EDUCATION & SKILLS LIMITED",10004977]
["PARTNERSHIP DEVELOPMENT SOLUTIONS LTD",10027893]
["PATHWAY FIRST LIMITED",10021793]
["PDM TRAINING & CONSULTANCY LIMITED",10005017]
["PEOPLE AND BUSINESS DEVELOPMENT LTD",10020395]
["PEOPLEPLUS GROUP LIMITED",10036431]
["PERA TRAINING LIMITED",10038913]
["PETA LIMITED",10005064]
["PETERBOROUGH CITY COUNCIL",10005074]
["PETERBOROUGH REGIONAL COLLEGE",10005077]
["PETROC",10004676]
["PGL TRAINING (PLUMBING) LIMITED",10008426]
["PHILIPS HAIR SALONS LIMITED",10005089]
["PILOT IMS LIMITED",10005101]
["PLUMPTON COLLEGE",10005124]
["PLYMOUTH CITY COUNCIL",10005126]
["PLYMOUTH COLLEGE OF ART",10005127]
["PORTSLADE ALDRIDGE COMMUNITY ACADEMY",10034944]
["PORTSMOUTH CITY COUNCIL",10005157]
["PORTSMOUTH COLLEGE",10005158]
["POSITIVE OUTCOMES LTD",10005166]
["POULTEC TRAINING LIMITED",10005172]
["PRE-SCHOOL LEARNING ALLIANCE",10000239]
["PRESTON COLLEGE",10005200]
["PREVISTA LTD",10005204]
["PRIOR PURSGLOVE AND STOCKTON SIXTH FORM COLLEGE",10056281]
["PROCO NW LIMITED",10021842]
["PROFOUND SERVICES LIMITED",10022358]
["PROGRESS TO EXCELLENCE LTD",10004823]
["PROJECT MANAGEMENT (STAFFORDSHIRE) LIMITED",10005250]
["PROSPECT TRAINING SERVICES (GLOUCESTER) LIMITED",10005261]
["PROSPECTS COLLEGE OF ADVANCED TECHNOLOGY",10046354]
["PROVQ LIMITED",10022503]
["QA LIMITED",10003375]
["QDOS TRAINING LIMITED",10021018]
["QINETIQ LIMITED",10002264]
["QUBE QUALIFICATIONS AND DEVELOPMENT LIMITED",10005319]
["RATHBONE TRAINING",10036345]
["RAYTHEON SYSTEMS LIMITED",10024704]
["REASEHEATH COLLEGE",10005404]
["REDBRIDGE COLLEGE",10005410]
["REDCAR & CLEVELAND COLLEGE",10005414]
["REDCAR AND CLEVELAND BOROUGH COUNCIL",10005413]
["REDWOOD EDUCATION AND SKILLS LIMITED",10031984]
["REED IN PARTNERSHIP LIMITED",10021172]
["REGENT COLLEGE",10005429]
["RELEASE POTENTIAL LTD",10025330]
["REMIT GROUP LIMITED",10023047]
["RESOURCES (N E) LIMITED",10024686]
["REWARDS TRAINING RECRUITMENT CONSULTANCY LIMITED",10005457]
["RICHARD HUISH COLLEGE",10005465]
["RICHMOND UPON THAMES BOROUGH COUNCIL",10007362]
["RICHMOND UPON THAMES COLLEGE",10005469]
["RIVERSIDE COLLEGE",10002863]
["RIVERSIDE TRAINING LIMITED",10005488]
["RNN GROUP",10005534]
["ROCHDALE TRAINING ASSOCIATION LIMITED",10005509]
["ROCKET TRAINING LIMITED",10005514]
["ROYAL BOROUGH OF KINGSTON UPON THAMES",10005549]
["RUNSHAW COLLEGE",10005575]
["RUTLAND COUNTY COUNCIL",10005586]
["RWP TRAINING LIMITED",10005588]
["S & B AUTOMOTIVE ACADEMY LIMITED",10005599]
["S.W. DURHAM TRAINING LIMITED",10006005]
["SAKS (EDUCATION) LIMITED",10005642]
["SALFORD AND TRAFFORD ENGINEERING GROUP TRAINING ASSOCIATION LIMITED",10006317]
["SALFORD CITY COLLEGE",10005032]
["SANDWELL COLLEGE",10005669]
["SBC TRAINING LIMITED",10033746]
["SEETEC BUSINESS TECHNOLOGY CENTRE LIMITED",10005735]
["SEEVIC COLLEGE",10005736]
["SELBY COLLEGE",10005741]
["SELETA TRAINING AND PERSONNEL SERVICES LIMITED",10005744]
["SERCO LIMITED",10005752]
["SHAW TRUST LIMITED(THE)",10005782]
["SHEFFIELD CITY COUNCIL",10002244]
["SHEFFIELD COLLEGE, THE",10005788]
["SHEFFIELD HALLAM UNIVERSITY",10005790]
["SHIPLEY COLLEGE",10005810]
["SHREWSBURY SIXTH FORM COLLEGE",10005822]
["SKILLNET LIMITED",10005891]
["SKILLS FOR HEALTH LIMITED",10038112]
["SKILLS FOR SECURITY LIMITED",10010523]
["SKILLS TEAM LTD",10012834]
["SKILLS TO GROUP LIMITED",10005277]
["SKILLS TRAINING UK LIMITED",10005897]
["SKILLS UK LTD",10020256]
["SLOUGH BOROUGH COUNCIL",10005916]
["SMART TRAINING AND RECRUITMENT LIMITED",10005927]
["SOCIAL ENTERPRISE KENT CIC",10028742]
["SOFTMIST LIMITED",10022237]
["SOLIHULL COLLEGE",10005946]
["SOMERSET SKILLS & LEARNING CIC",10042505]
["SOUTH & CITY COLLEGE BIRMINGHAM",10005967]
["SOUTH CHESHIRE COLLEGE",10005972]
["SOUTH DEVON COLLEGE",10005977]
["SOUTH DOWNS COLLEGE",10005979]
["SOUTH ESSEX COLLEGE OF FURTHER AND HIGHER EDUCATION",10005981]
["SOUTH GLOUCESTERSHIRE AND STROUD COLLEGE",10036143]
["SOUTH LEICESTERSHIRE COLLEGE",10005989]
["SOUTH STAFFORDSHIRE COLLEGE",10023526]
["SOUTH THAMES COLLEGE",10005997]
["SOUTH TYNESIDE COLLEGE",10005999]
["SOUTH TYNESIDE COUNCIL",10006000]
["SOUTH WEST ASSOCIATION OF TRAINING PROVIDERS LIMITED",10032119]
["SOUTH WEST REGIONAL ASSESSMENT CENTRE LIMITED",10007872]
["SOUTHAMPTON CITY COLLEGE",10006020]
["SOUTHAMPTON ENGINEERING TRAINING ASSOCIATION LIMITED (THE)",10005760]
["SOUTHAMPTON SOLENT UNIVERSITY",10006022]
["SOUTHEND-ON-SEA BOROUGH COUNCIL",10006029]
["SOUTHPORT COLLEGE",10006038]
["SPAN TRAINING & DEVELOPMENT LIMITED",10009091]
["SPARSHOLT COLLEGE",10006050]
["SPECSAVERS OPTICAL SUPERSTORES LIMITED",10042132]
["SPRINGBOARD SUNDERLAND TRUST",10006086]
["SPRINGFIELDS FUELS LIMITED",10010548]
["ST HELENS CHAMBER LIMITED",10006173]
["ST HELENS COLLEGE",10006174]
["ST VINCENT COLLEGE",10006268]
["STAFF SELECT LTD",10027272]
["STAFFORD COLLEGE",10006293]
["STAFFORDSHIRE COUNTY COUNCIL",10006296]
["STAFFORDSHIRE UNIVERSITY",10006299]
["STANMORE COLLEGE",10009439]
["START TRAINING LTD",10019839]
["STARTING OFF (NORTHAMPTON) LIMITED",10027655]
["STEADFAST TRAINING LTD",10018942]
["STEPHENSON COLLEGE",10006322]
["STEPS TO WORK (WALSALL) LTD",10006325]
["STOCKPORT COLLEGE",10006331]
["STOCKPORT ENGINEERING TRAINING ASSOCIATION LIMITED(THE)",10006332]
["STOCKTON RIVERSIDE COLLEGE",10006341]
["STOCKTON-ON-TEES BOROUGH COUNCIL",10006337]
["STOKE ON TRENT COLLEGE",10006349]
["STOKE-ON-TRENT UNITARY AUTHORITY",10001473]
["STRAIGHT A TRAINING LIMITED",10006365]
["STRATFORD-UPON-AVON COLLEGE",10006002]
["STRODE COLLEGE",10006378]
["STUBBING COURT TRAINING LIMITED",10006387]
["SUCCEED LIMITED",10033478]
["SUFFOLK NEW COLLEGE",10006398]
["SUMMERHOUSE EQUESTRIAN AND TRAINING CENTRE LLP",10043685]
["SUNDERLAND CITY METROPOLITAN BOROUGH COUNCIL",10006407]
["SUNDERLAND COLLEGE",10001475]
["SUNDERLAND ENGINEERING TRAINING ASSOCIATION LIMITED",10006408]
["SUSSEX COAST COLLEGE HASTINGS",10002923]
["SUSSEX DOWNS COLLEGE",10006432]
["SUTTON LONDON BOROUGH COUNCIL",10004000]
["SWINDON COLLEGE",10006463]
["SYSCO BUSINESS SKILLS ACADEMY LIMITED",10013122]
["SYSTEM GROUP LIMITED",10006472]
["TALENT TRAINING (UK) LLP",10024071]
["TAMESIDE COLLEGE",10006494]
["TDR TRAINING LIMITED",10006517]
["TEAM ENTERPRISES LIMITED",10006519]
["TEAM WEARSIDE LIMITED",10006521]
["TELFORD COLLEGE OF ARTS & TECHNOLOGY",10006549]
["THE ACADEMY HAIR & BEAUTY LTD",10006574]
["THE APPRENTICE ACADEMY LIMITED",10036578]
["THE CARE LEARNING CENTRE (ISLE OF WIGHT) LIMITED",10006622]
["THE CHILD CARE COMPANY (OLD WINDSOR) LIMITED",10022788]
["THE CITY LITERARY INSTITUTE",10001463]
["THE CITY OF LIVERPOOL COLLEGE",10003955]
["THE COLLEGE OF ANIMAL WELFARE LIMITED",10001539]
["THE COLLEGE OF RICHARD COLLYER IN HORSHAM",10001550]
["THE COLLEGE OF WEST ANGLIA",10007916]
["THE CORNWALL COUNCIL",10001695]
["THE DERBYSHIRE NETWORK",10006651]
["THE FOOTBALL ASSOCIATION PREMIER LEAGUE LIMITED",10002527]
["THE HEADMASTERS PARTNERSHIP LIMITED",10009072]
["THE HENLEY COLLEGE",10003011]
["THE INTRAINING GROUP LIMITED",10022763]
["THE JCB ACADEMY",10030656]
["THE LEARNING CURVE (VOLUNTARY SECTOR DEVELOPMENT)",10006734]
["THE LEARNING PARTNERSHIP FOR CORNWALL AND THE ISLES OF SCILLY LIMITED",10006735]
["THE LONDON COLLEGE OF BEAUTY THERAPY LIMITED",10004013]
["THE MOTOR INSURANCE REPAIR RESEARCH CENTRE",10006571]
["THE NORTHUMBERLAND COUNCIL",10004762]
["THE OLDHAM COLLEGE",10006770]
["THE OPEN UNIVERSITY",10007773]
["THE REAL APPRENTICESHIP COMPANY LIMITED",10030670]
["THE REYNOLDS GROUP LIMITED",10006797]
["THE SKILLS PARTNERSHIP LIMITED",10005894]
["THE TRAINING & RECRUITMENT PARTNERSHIP LIMITED",10006986]
["THE TTE TECHNICAL TRAINING GROUP",10007070]
["THE UNIVERSITY OF HUDDERSFIELD ",10007148]
["THE UNIVERSITY OF KENT",10007150]
["THE UNIVERSITY OF SHEFFIELD",10007157]
["THE UNIVERSITY OF WEST LONDON",10006566]
["THE VOCATIONAL COLLEGE LIMITED",10006847]
["THE VOLUNTARY AND COMMUNITY SECTOR LEARNING AND SKILLS CONSORTIUM",10004788]
["THE WILTSHIRE COUNCIL",10007528]
["THELIGHTBULB LTD",10003919]
["THOMAS ROTHERHAM COLLEGE",10006892]
["THURROCK UNITARY AUTHORITY",10006907]
["TIR TRAINING SERVICES LTD",10020313]
["TOTAL PEOPLE LIMITED",10021755]
["TOWER HAMLETS COLLEGE",10006963]
["TOWER HAMLETS LONDON BOROUGH COUNCIL",10006964]
["TOYOTA(G.B.) PLC",10011165]
["TQ WORKFORCE DEVELOPMENT LIMITED",10010939]
["TRAFFORD COLLEGE",10005998]
["TRAIN'D UP RAILWAY RESOURCING LIMITED",10010672]
["TRAINING 2000 LIMITED",10006987]
["TRAINING FUTURES (UK) LIMITED",10031408]
["TRAINING PLUS (MERSEYSIDE) LIMITED",10007013]
["TRAINING SERVICES 2000 LTD",10007015]
["TRAINING STRATEGIES LTD.",10027873]
["TRAINING SYNERGY LIMITED",10035270]
["TRANSWORLD PUBLICATIONS SERVICES LIMITED",10005268]
["TRESHAM COLLEGE OF FURTHER AND HIGHER EDUCATION",10007035]
["TRN (TRAIN) LTD.",10000082]
["TRURO AND PENWITH COLLEGE",10007063]
["TTE TRAINING LIMITED",10004589]
["TYNE METROPOLITAN COLLEGE",10008569]
["TYNE NORTH TRAINING LIMITED",10007100]
["UK TRAINING & DEVELOPMENT LIMITED",10007123]
["UNITED UTILITIES WATER LIMITED",10040525]
["UNIVERSITY COLLEGE BIRMINGHAM",10000712]
["UNIVERSITY OF CHESTER",10007848]
["UNIVERSITY OF DERBY",10007851]
["UNIVERSITY OF DURHAM",10007143]
["UNIVERSITY OF LINCOLN",10007151]
["UNIVERSITY OF SALFORD, THE",10007156]
["UNIVERSITY OF SUNDERLAND",10007159]
["UNIVERSITY OF THE ARTS, LONDON",10007162]
["URBAN FUTURES LONDON LIMITED",10021021]
["UXBRIDGE COLLEGE",10007193]
["V LEARNING NET",10003841]
["VECTOR AEROSPACE INTERNATIONAL LIMITED",10024426]
["VIRGIN MEDIA LIMITED",10023925]
["VIRTUAL COLLEGE LIMITED",10006845]
["VOCATIONAL TRAINING SERVICES CARE SECTOR LIMITED",10009450]
["VQ SOLUTIONS LTD",10022405]
["W S TRAINING LTD.",10007659]
["WAKEFIELD CITY COUNCIL",10007291]
["WAKEFIELD COLLEGE",10007289]
["WALSALL COLLEGE",10007315]
["WALSALL HEALTHCARE NATIONAL HEALTH SERVICE TRUST",10010616]
["WALSALL METROPOLITAN BOROUGH COUNCIL",10007318]
["WALTHAM FOREST CHAMBER OF COMMERCE TRAINING TRUST LIMITED",10007320]
["WALTHAM FOREST COLLEGE",10007321]
["WALTHAM FOREST LONDON BOROUGH COUNCIL",10007322]
["WANDSWORTH LONDON BOROUGH COUNCIL",10004002]
["WARRINGTON COLLEGIATE",10007339]
["WARWICKSHIRE COLLEGE",10007859]
["WAVERLEY BOROUGH COUNCIL",10008986]
["WEBS TRAINING LIMITED",10007375]
["WEIR TRAINING LIMITED",10007377]
["WEST ANGLIA TRAINING ASSOCIATION LIMITED",10007396]
["WEST BERKSHIRE TRAINING CONSORTIUM",10007402]
["WEST CHESHIRE COLLEGE",10007407]
["WEST HERTS COLLEGE",10007417]
["WEST KENT AND ASHFORD COLLEGE",10007419]
["WEST LANCASHIRE COLLEGE",10053961]
["WEST NOTTINGHAMSHIRE COLLEGE",10007427]
["WEST SUFFOLK COLLEGE",10007431]
["WEST THAMES COLLEGE",10007434]
["WEST YORKSHIRE LEARNING PROVIDERS LTD",10008591]
["WESTMINSTER CITY COUNCIL",10001464]
["WESTMINSTER KINGSWAY COLLEGE",10007455]
["WESTON COLLEGE OF FURTHER AND HIGHER EDUCATION",10007459]
["WESTWARD PATHFINDER",10003256]
["WEYMOUTH COLLEGE",10007469]
["WIGAN AND LEIGH COLLEGE",10007500]
["WIGAN METROPOLITAN BOROUGH COUNCIL",10007502]
["WILTSHIRE COLLEGE",10007527]
["WILTSHIRE TRANSPORT TRAINING & DEVELOPMENT LIMITED",10008024]
["WIRRAL METROPOLITAN COLLEGE",10007553]
["WOLSELEY UK LIMITED ",10054558]
["WOODSPEEN TRAINING LIMITED",10000028]
["WORTHING COLLEGE",10007643]
["WRITTLE COLLEGE",10007657]
["XAVERIAN COLLEGE",10007682]
["XTP INTERNATIONAL LIMITED",10005150]
["YEOVIL COLLEGE",10007696]
["YH TRAINING SERVICES LIMITED",10007697]
["YMCA TRAINING",10007405]
["YORK COLLEGE",10007709]
["YORKSHIRE COLLEGE OF BEAUTY LIMITED",10008699]
["YORKSHIRE TRAINING PARTNERSHIP LIMITED",10007722]
["YOUNGSAVE COMPANY LIMITED",10004370]

{"sheet":"Reasons","index":4,"n_rows":3,"n_cols":1,"rows_kept":3,"cut":false,"hidden":false,"merged":[]}
["Change 16-18 age group only"]
["Change 19-24 age group only"]
["Change both 16-18 and 19-24 age groups"]